[Event "Titled Tuesday Blitz August 22 Early 2023"]
[White "Siniauski, Artsiom"]
[Black "Ozalp, Burak"]
[WhiteFideId "13512269"]
[BlackFideId "6314210"]
[WhiteElo "2566"]
[BlackElo "2384"]
[Result "0-1"]
[Round "6"]
[TimeControl "180+1"]
[Date "2023.08.22"]
[WhiteClock "0:00:09"]
[BlackClock "0:00:11"]
[Board "99"]

1. e4 {[%clk 0:03:00]}  c5 {[%clk 0:02:56]} 2. Nf3 {[%clk 0:03:00]}  Nc6 {[%clk 0:02:54]} 3. Bb5 {[%clk 0:02:59]}  e6 {[%clk 0:02:52]} 4. Bxc6 {[%clk 0:02:56]}  dxc6 {[%clk 0:02:38]} 5. d3 {[%clk 0:02:54]}  Qc7 {[%clk 0:02:38]} 6. b3 {[%clk 0:02:46]}  e5 {[%clk 0:02:29]} 7. Bb2 {[%clk 0:02:46]}  f6 {[%clk 0:02:27]} 8. Nbd2 {[%clk 0:02:45]}  Be6 {[%clk 0:02:25]} 9. Qe2 {[%clk 0:02:41]}  Bd6 {[%clk 0:02:24]} 10. Nc4 {[%clk 0:02:40]}  Ne7 {[%clk 0:02:22]} 11. Nfd2 {[%clk 0:02:34]}  b5 {[%clk 0:02:18]} 12. Ne3 {[%clk 0:02:25]}  a5 {[%clk 0:02:18]} 13. a4 {[%clk 0:02:23]}  O-O {[%clk 0:02:16]} 14. O-O {[%clk 0:02:22]}  g5 {[%clk 0:02:10]} 15. h3 {[%clk 0:02:12]}  Kg7 {[%clk 0:02:04]} 16. c3 {[%clk 0:02:11]}  Ng6 {[%clk 0:02:01]} 17. d4 {[%clk 0:02:07]}  Nf4 {[%clk 0:02:00]} 18. Qf3 {[%clk 0:02:04]}  h5 {[%clk 0:01:53]} 19. Nf5+ {[%clk 0:01:59]}  Bxf5 {[%clk 0:01:45]} 20. exf5 {[%clk 0:02:00]}  Rae8 {[%clk 0:01:37]} 21. dxc5 {[%clk 0:01:45]}  Bxc5 {[%clk 0:01:35]} 22. Ne4 {[%clk 0:01:45]}  Be7 {[%clk 0:01:28]} 23. c4 {[%clk 0:01:43]}  Rd8 {[%clk 0:01:25]} 24. Rad1 {[%clk 0:01:37]}  Rxd1 {[%clk 0:01:24]} 25. Rxd1 {[%clk 0:01:38]}  Rd8 {[%clk 0:01:24]} 26. cxb5 {[%clk 0:01:32]}  cxb5 {[%clk 0:01:22]} 27. axb5 {[%clk 0:01:32]}  Qc2 {[%clk 0:01:08]} 28. Rxd8 {[%clk 0:01:28]}  Bxd8 {[%clk 0:01:09]} 29. Ba3 {[%clk 0:01:25]}  Bb6 {[%clk 0:00:56]} 30. Be7 {[%clk 0:01:08]}  Ne2+ {[%clk 0:00:47]} 31. Kh2 {[%clk 0:00:53]}  Qd1 {[%clk 0:00:47]} 32. Bxf6+ {[%clk 0:00:45]}  Kg8 {[%clk 0:00:47]} 33. Qxe2 {[%clk 0:00:13]}  Qxe2 {[%clk 0:00:48]} 34. f3 {[%clk 0:00:12]}  Qxb5 {[%clk 0:00:31]} 35. Bxg5 {[%clk 0:00:10]}  Qxb3 {[%clk 0:00:31]} 36. f6 {[%clk 0:00:10]}  a4 {[%clk 0:00:31]} 37. Nd6 {[%clk 0:00:09]}  a3 {[%clk 0:00:13]} 38. f7+ {[%clk 0:00:09]}  Qxf7 {[%clk 0:00:14]} 39. Nxf7 {[%clk 0:00:09]}  Kxf7 {[%clk 0:00:14]} 40. f4 {[%clk 0:00:05]}  a2 {[%clk 0:00:12]} 41. fxe5 {[%clk 0:00:05]}  a1=Q {[%clk 0:00:12]} 42. Bf4 {[%clk 0:00:06]}  Bd4 {[%clk 0:00:11]} 43. Kg3 {[%clk 0:00:07]}  Bxe5 {[%clk 0:00:11]} 44. Kh4 {[%clk 0:00:07]}  Bxf4 {[%clk 0:00:11]} 45. g4 {[%clk 0:00:08]}  Qf6+ {[%clk 0:00:11]} 46. g5 {[%clk 0:00:09]}  Qxg5# {[%clk 0:00:11]} 0-1


[Site "https://www.chess.com"]

[Event "Titled Tuesday Blitz August 22 Early 2023"]
[White "Pavlidis, Anastasios"]
[Black "Chor, Kevin"]
[WhiteFideId "4208404"]
[BlackFideId "2090740"]
[WhiteElo "2339"]
[BlackElo "2562"]
[Result "0-1"]
[Round "6"]
[TimeControl "180+1"]
[Date "2023.08.22"]
[WhiteClock "0:00:01"]
[BlackClock "0:00:10"]
[Board "101"]

1. d4 {[%clk 0:02:58]}  Nf6 {[%clk 0:02:59]} 2. c4 {[%clk 0:02:57]}  g6 {[%clk 0:02:59]} 3. Nc3 {[%clk 0:02:56]}  Bg7 {[%clk 0:02:59]} 4. e4 {[%clk 0:02:54]}  d6 {[%clk 0:02:59]} 5. Nf3 {[%clk 0:02:53]}  O-O {[%clk 0:02:59]} 6. Be2 {[%clk 0:02:54]}  e5 {[%clk 0:02:59]} 7. Be3 {[%clk 0:02:54]}  Ng4 {[%clk 0:02:57]} 8. Bg5 {[%clk 0:02:53]}  f6 {[%clk 0:02:58]} 9. Bh4 {[%clk 0:02:54]}  g5 {[%clk 0:02:58]} 10. Bg3 {[%clk 0:02:54]}  Nc6 {[%clk 0:02:58]} 11. d5 {[%clk 0:02:53]}  Ne7 {[%clk 0:02:58]} 12. Nd2 {[%clk 0:02:48]}  f5 {[%clk 0:02:51]} 13. exf5 {[%clk 0:02:39]}  Nh6 {[%clk 0:02:47]} 14. h4 {[%clk 0:02:39]}  Nhxf5 {[%clk 0:02:35]} 15. Nce4 {[%clk 0:02:29]}  gxh4 {[%clk 0:02:17]} 16. Bxh4 {[%clk 0:02:17]}  Nxh4 {[%clk 0:02:13]} 17. Rxh4 {[%clk 0:02:16]}  Ng6 {[%clk 0:02:00]} 18. Rh2 {[%clk 0:02:13]}  Bf5 {[%clk 0:01:40]} 19. Bg4 {[%clk 0:02:07]}  Qd7 {[%clk 0:01:32]} 20. Bxf5 {[%clk 0:02:05]}  Qxf5 {[%clk 0:01:33]} 21. Qf3 {[%clk 0:02:01]}  Qd7 {[%clk 0:01:14]} 22. Qh5 {[%clk 0:01:48]}  Rf5 {[%clk 0:00:48]} 23. Qxh7+ {[%clk 0:01:08]}  Kf7 {[%clk 0:00:48]} 24. g4 {[%clk 0:01:08]}  Rh8 {[%clk 0:00:38]} 25. gxf5 {[%clk 0:00:42]}  Qxf5 {[%clk 0:00:29]} 26. O-O-O {[%clk 0:00:24]}  Rxh7 {[%clk 0:00:27]} 27. Rxh7 {[%clk 0:00:24]}  Nf4 {[%clk 0:00:27]} 28. Rhh1 {[%clk 0:00:17]}  Nd3+ {[%clk 0:00:17]} 29. Kb1 {[%clk 0:00:17]}  Nc5 {[%clk 0:00:18]} 30. f3 {[%clk 0:00:17]}  Ke8 {[%clk 0:00:16]} 31. Rdg1 {[%clk 0:00:16]}  Bf8 {[%clk 0:00:16]} 32. Rg8 {[%clk 0:00:14]}  Nd7 {[%clk 0:00:15]} 33. Rhh8 {[%clk 0:00:12]}  Ke7 {[%clk 0:00:15]} 34. c5 {[%clk 0:00:10]}  dxc5 {[%clk 0:00:12]} 35. Rg5 {[%clk 0:00:07]}  Qf7 {[%clk 0:00:11]} 36. Rhh5 {[%clk 0:00:07]}  Qxd5 {[%clk 0:00:11]} 37. Rh7+ {[%clk 0:00:05]}  Ke8 {[%clk 0:00:11]} 38. Kc2 {[%clk 0:00:03]}  Qxa2 {[%clk 0:00:10]} 39. Rf5 {[%clk 0:00:02]}  Qa4+ {[%clk 0:00:10]} 40. b3 {[%clk 0:00:03]}  Qa2+ {[%clk 0:00:10]} 41. Kc3 {[%clk 0:00:03]}  b5 {[%clk 0:00:10]} 42. Rh8 {[%clk 0:00:01]}  b4+ {[%clk 0:00:09]} 43. Kd3 {[%clk 0:00:01]}  Qa6+ {[%clk 0:00:08]} 44. Ke3 {[%clk 0:00:02]}  c4 {[%clk 0:00:08]} 45. Ng5 {[%clk 0:00:01]}  Qb6+ {[%clk 0:00:08]} 46. Ke4 {[%clk 0:00:01]}  c3 {[%clk 0:00:09]} 47. Nc4 {[%clk 0:00:01]}  Qd4# {[%clk 0:00:10]} 0-1


[Site "https://www.chess.com"]

[Event "Titled Tuesday Blitz August 22 Early 2023"]
[White "Acosta Cruz, Oscar Yosimar"]
[Black "Mazurkiewicz, Michal"]
[WhiteFideId "5111269"]
[BlackFideId "1124943"]
[WhiteElo "2283"]
[BlackElo "2511"]
[Result "0-1"]
[Round "6"]
[TimeControl "180+1"]
[Date "2023.08.22"]
[WhiteClock "0:00:23"]
[BlackClock "0:00:16"]
[Board "102"]

1. d4 {[%clk 0:03:00]}  Nf6 {[%clk 0:03:00]} 2. c4 {[%clk 0:02:59]}  e5 {[%clk 0:03:00]} 3. dxe5 {[%clk 0:02:50]}  Ng4 {[%clk 0:03:00]} 4. Bf4 {[%clk 0:02:44]}  Nc6 {[%clk 0:02:57]} 5. Nf3 {[%clk 0:02:43]}  Bb4+ {[%clk 0:02:57]} 6. Nbd2 {[%clk 0:02:40]}  Qe7 {[%clk 0:02:56]} 7. a3 {[%clk 0:02:37]}  Ngxe5 {[%clk 0:02:52]} 8. Nxe5 {[%clk 0:02:35]}  Nxe5 {[%clk 0:02:52]} 9. Bxe5 {[%clk 0:02:33]}  Bxd2+ {[%clk 0:02:49]} 10. Qxd2 {[%clk 0:02:34]}  Qxe5 {[%clk 0:02:49]} 11. g3 {[%clk 0:02:31]}  Qe4 {[%clk 0:02:36]} 12. Qd5 {[%clk 0:02:24]}  Qxd5 {[%clk 0:01:43]} 13. cxd5 {[%clk 0:02:25]}  d6 {[%clk 0:01:43]} 14. Rc1 {[%clk 0:02:19]}  Kd8 {[%clk 0:01:44]} 15. Bg2 {[%clk 0:02:14]}  a5 {[%clk 0:01:43]} 16. e4 {[%clk 0:02:11]}  Ra6 {[%clk 0:01:44]} 17. f4 {[%clk 0:02:04]}  Rb6 {[%clk 0:01:44]} 18. Rc2 {[%clk 0:02:00]}  Re8 {[%clk 0:01:37]} 19. Kf2 {[%clk 0:02:00]}  f5 {[%clk 0:01:37]} 20. Re1 {[%clk 0:01:56]}  fxe4 {[%clk 0:01:32]} 21. Bxe4 {[%clk 0:01:56]}  g6 {[%clk 0:01:05]} 22. Re3 {[%clk 0:01:56]}  Bf5 {[%clk 0:00:50]} 23. Bxf5 {[%clk 0:01:44]}  Rxe3 {[%clk 0:00:51]} 24. Kxe3 {[%clk 0:01:45]}  gxf5 {[%clk 0:00:52]} 25. Kd4 {[%clk 0:01:37]}  Rb3 {[%clk 0:00:40]} 26. Re2 {[%clk 0:01:37]}  a4 {[%clk 0:00:37]} 27. Rf2 {[%clk 0:01:18]}  h5 {[%clk 0:00:33]} 28. Re2 {[%clk 0:01:16]}  b5 {[%clk 0:00:32]} 29. Rc2 {[%clk 0:01:08]}  Kc8 {[%clk 0:00:30]} 30. Rg2 {[%clk 0:01:04]}  Kb7 {[%clk 0:00:30]} 31. h3 {[%clk 0:01:04]}  Rf3 {[%clk 0:00:23]} 32. Rg1 {[%clk 0:00:58]}  h4 {[%clk 0:00:24]} 33. gxh4 {[%clk 0:00:54]}  Rxf4+ {[%clk 0:00:24]} 34. Kc3 {[%clk 0:00:54]}  Rxh4 {[%clk 0:00:25]} 35. Rg3 {[%clk 0:00:54]}  Kb6 {[%clk 0:00:24]} 36. b3 {[%clk 0:00:53]}  axb3 {[%clk 0:00:23]} 37. Kxb3 {[%clk 0:00:54]}  f4 {[%clk 0:00:24]} 38. Rf3 {[%clk 0:00:54]}  Kc5 {[%clk 0:00:25]} 39. Rd3 {[%clk 0:00:53]}  Rh5 {[%clk 0:00:25]} 40. Rf3 {[%clk 0:00:52]}  Rf5 {[%clk 0:00:26]} 41. h4 {[%clk 0:00:52]}  Kxd5 {[%clk 0:00:27]} 42. h5 {[%clk 0:00:53]}  Ke4 {[%clk 0:00:27]} 43. Rh3 {[%clk 0:00:51]}  f3 {[%clk 0:00:26]} 44. h6 {[%clk 0:00:51]}  f2 {[%clk 0:00:26]} 45. h7 {[%clk 0:00:51]}  Rf8 {[%clk 0:00:17]} 46. Rh1 {[%clk 0:00:23]}  Rh8 {[%clk 0:00:16]} 0-1


[Site "https://www.chess.com"]

[Event "Titled Tuesday Blitz August 22 Early 2023"]
[White "Hajiyev, Kanan"]
[Black "GaiozNigalidze"]
[WhiteFideId "13404148"]
[WhiteElo "2508"]
[BlackElo "2683"]
[Result "0-1"]
[Round "6"]
[TimeControl "180+1"]
[Date "2023.08.22"]
[WhiteClock "0:01:45"]
[BlackClock "0:02:01"]
[Board "104"]

1. d4 {[%clk 0:03:00]}  Nf6 {[%clk 0:02:59]} 2. Nf3 {[%clk 0:03:01]}  d5 {[%clk 0:02:59]} 3. c4 {[%clk 0:03:01]}  e6 {[%clk 0:02:59]} 4. cxd5 {[%clk 0:03:02]}  exd5 {[%clk 0:02:59]} 5. Nc3 {[%clk 0:03:03]}  Be7 {[%clk 0:02:58]} 6. Qc2 {[%clk 0:03:03]}  c6 {[%clk 0:02:59]} 7. Bf4 {[%clk 0:03:03]}  O-O {[%clk 0:02:59]} 8. e3 {[%clk 0:03:03]}  Nbd7 {[%clk 0:03:00]} 9. Bd3 {[%clk 0:03:04]}  Re8 {[%clk 0:03:00]} 10. O-O {[%clk 0:03:04]}  Nf8 {[%clk 0:03:01]} 11. Rab1 {[%clk 0:03:03]}  Ng6 {[%clk 0:03:01]} 12. Bg3 {[%clk 0:03:04]}  Bd6 {[%clk 0:03:02]} 13. Bxd6 {[%clk 0:02:59]}  Qxd6 {[%clk 0:03:01]} 14. b4 {[%clk 0:02:59]}  a6 {[%clk 0:03:02]} 15. a4 {[%clk 0:02:59]}  b5 {[%clk 0:03:02]} 16. Ne2 {[%clk 0:02:56]}  Bg4 {[%clk 0:03:01]} 17. Rfc1 {[%clk 0:02:53]}  Bxf3 {[%clk 0:03:00]} 18. gxf3 {[%clk 0:02:53]}  Nh4 {[%clk 0:02:46]} 19. f4 {[%clk 0:02:53]}  Rac8 {[%clk 0:02:18]} 20. axb5 {[%clk 0:02:51]}  axb5 {[%clk 0:02:18]} 21. Bxb5 {[%clk 0:02:51]}  Qd7 {[%clk 0:02:06]} 22. Bd3 {[%clk 0:01:45]}  Qh3 {[%clk 0:02:01]} 0-1


[Site "https://www.chess.com"]

[Event "Titled Tuesday Blitz August 22 Early 2023"]
[White "Sanduleac, Vasile"]
[Black "Korchmar, Vasiliy"]
[WhiteFideId "13900161"]
[BlackFideId "24131750"]
[WhiteElo "2508"]
[BlackElo "2670"]
[Result "0-1"]
[Round "6"]
[TimeControl "180+1"]
[Date "2023.08.22"]
[WhiteClock "0:00:44"]
[BlackClock "0:00:47"]
[Board "105"]

1. e4 {[%clk 0:03:00]}  c5 {[%clk 0:02:58]} 2. Nf3 {[%clk 0:02:58]}  d6 {[%clk 0:02:59]} 3. Bb5+ {[%clk 0:02:58]}  Nd7 {[%clk 0:02:59]} 4. Bxd7+ {[%clk 0:02:58]}  Bxd7 {[%clk 0:02:59]} 5. O-O {[%clk 0:02:58]}  e6 {[%clk 0:02:58]} 6. d4 {[%clk 0:02:58]}  cxd4 {[%clk 0:02:58]} 7. Qxd4 {[%clk 0:02:58]}  Qc7 {[%clk 0:02:50]} 8. c4 {[%clk 0:02:57]}  Nf6 {[%clk 0:02:49]} 9. b3 {[%clk 0:02:55]}  Be7 {[%clk 0:02:47]} 10. Nc3 {[%clk 0:02:55]}  O-O {[%clk 0:02:47]} 11. Bb2 {[%clk 0:02:55]}  a6 {[%clk 0:02:39]} 12. Rac1 {[%clk 0:02:54]}  Rac8 {[%clk 0:02:37]} 13. Rfd1 {[%clk 0:02:52]}  Rfd8 {[%clk 0:02:33]} 14. h3 {[%clk 0:02:46]}  Qb8 {[%clk 0:02:33]} 15. a4 {[%clk 0:02:43]}  h6 {[%clk 0:02:28]} 16. a5 {[%clk 0:02:38]}  Qc7 {[%clk 0:02:27]} 17. Ra1 {[%clk 0:02:35]}  Bc6 {[%clk 0:02:26]} 18. Re1 {[%clk 0:02:32]}  d5 {[%clk 0:02:20]} 19. cxd5 {[%clk 0:02:26]}  exd5 {[%clk 0:02:20]} 20. e5 {[%clk 0:02:26]}  Ne4 {[%clk 0:02:19]} 21. b4 {[%clk 0:01:58]}  Nxc3 {[%clk 0:01:53]} 22. Bxc3 {[%clk 0:01:57]}  Bb5 {[%clk 0:01:54]} 23. Rac1 {[%clk 0:01:55]}  Qc4 {[%clk 0:01:47]} 24. e6 {[%clk 0:01:43]}  f6 {[%clk 0:01:35]} 25. Nh4 {[%clk 0:01:19]}  Qxd4 {[%clk 0:01:33]} 26. Bxd4 {[%clk 0:01:19]}  Bxb4 {[%clk 0:01:34]} 27. Red1 {[%clk 0:01:17]}  Rxc1 {[%clk 0:01:22]} 28. Rxc1 {[%clk 0:01:16]}  Re8 {[%clk 0:01:22]} 29. Nf5 {[%clk 0:01:16]}  Bc6 {[%clk 0:01:13]} 30. e7 {[%clk 0:01:14]}  Bxe7 {[%clk 0:01:05]} 31. Nxe7+ {[%clk 0:01:12]}  Rxe7 {[%clk 0:01:05]} 32. f3 {[%clk 0:01:06]}  Re2 {[%clk 0:01:04]} 33. Kf1 {[%clk 0:01:01]}  Rd2 {[%clk 0:01:03]} 34. Bb6 {[%clk 0:01:00]}  d4 {[%clk 0:01:02]} 35. Re1 {[%clk 0:00:59]}  d3 {[%clk 0:00:58]} 36. Re6 {[%clk 0:00:57]}  Bb5 {[%clk 0:00:50]} 37. Rd6 {[%clk 0:00:55]}  Ra2 {[%clk 0:00:48]} 38. Ke1 {[%clk 0:00:44]}  Rxg2 {[%clk 0:00:47]} 0-1


[Site "https://www.chess.com"]

[Event "Titled Tuesday Blitz August 22 Early 2023"]
[White "Eynullayev, Atilla"]
[Black "slidingknight2775"]
[WhiteFideId "13413570"]
[WhiteElo "2644"]
[BlackElo "2498"]
[Result "1/2-1/2"]
[Round "6"]
[TimeControl "180+1"]
[Date "2023.08.22"]
[WhiteClock "0:00:05"]
[BlackClock "0:00:06"]
[Board "106"]

1. d4 {[%clk 0:03:00]}  Nf6 {[%clk 0:02:59]} 2. c4 {[%clk 0:03:01]}  e6 {[%clk 0:03:00]} 3. Nc3 {[%clk 0:03:02]}  Bb4 {[%clk 0:03:00]} 4. e3 {[%clk 0:03:02]}  O-O {[%clk 0:03:00]} 5. Bd3 {[%clk 0:03:03]}  d5 {[%clk 0:03:00]} 6. Nf3 {[%clk 0:03:03]}  c5 {[%clk 0:03:01]} 7. cxd5 {[%clk 0:03:03]}  exd5 {[%clk 0:02:58]} 8. dxc5 {[%clk 0:03:03]}  Bxc5 {[%clk 0:02:58]} 9. O-O {[%clk 0:03:03]}  Nc6 {[%clk 0:02:56]} 10. h3 {[%clk 0:03:03]}  Re8 {[%clk 0:02:55]} 11. b3 {[%clk 0:03:03]}  a6 {[%clk 0:02:54]} 12. Bb2 {[%clk 0:03:02]}  h6 {[%clk 0:02:51]} 13. Rc1 {[%clk 0:03:01]}  Ba7 {[%clk 0:02:50]} 14. Ne2 {[%clk 0:03:00]}  Ne4 {[%clk 0:02:48]} 15. Ned4 {[%clk 0:03:00]}  Nxd4 {[%clk 0:02:47]} 16. Bxd4 {[%clk 0:03:00]}  Bxd4 {[%clk 0:02:33]} 17. Nxd4 {[%clk 0:03:00]}  Qg5 {[%clk 0:02:33]} 18. Kh2 {[%clk 0:02:52]}  Bd7 {[%clk 0:02:15]} 19. Nf3 {[%clk 0:02:47]}  Qe7 {[%clk 0:01:58]} 20. Bb1 {[%clk 0:02:43]}  Bb5 {[%clk 0:01:45]} 21. Bd3 {[%clk 0:02:40]}  Bd7 {[%clk 0:01:33]} 22. Kg1 {[%clk 0:02:32]}  Rac8 {[%clk 0:01:27]} 23. Qe2 {[%clk 0:02:27]}  Qf6 {[%clk 0:01:21]} 24. a4 {[%clk 0:02:05]}  Rc3 {[%clk 0:00:56]} 25. Nd4 {[%clk 0:02:02]}  Rec8 {[%clk 0:00:37]} 26. Rxc3 {[%clk 0:01:57]}  Rxc3 {[%clk 0:00:38]} 27. Rd1 {[%clk 0:01:41]}  Qg5 {[%clk 0:00:29]} 28. Kf1 {[%clk 0:01:25]}  Qf6 {[%clk 0:00:22]} 29. Qb2 {[%clk 0:00:53]}  Rc8 {[%clk 0:00:19]} 30. Bxe4 {[%clk 0:00:30]}  dxe4 {[%clk 0:00:20]} 31. Rc1 {[%clk 0:00:30]}  Rc6 {[%clk 0:00:13]} 32. Qa3 {[%clk 0:00:23]}  Rxc1+ {[%clk 0:00:12]} 33. Qxc1 {[%clk 0:00:23]}  Qd6 {[%clk 0:00:12]} 34. Qc4 {[%clk 0:00:23]}  b5 {[%clk 0:00:09]} 35. axb5 {[%clk 0:00:19]}  axb5 {[%clk 0:00:10]} 36. Qc2 {[%clk 0:00:19]}  b4 {[%clk 0:00:10]} 37. Qxe4 {[%clk 0:00:17]}  Be6 {[%clk 0:00:06]} 38. Kg1 {[%clk 0:00:16]}  Bxb3 {[%clk 0:00:04]} 39. Qa8+ {[%clk 0:00:09]}  Kh7 {[%clk 0:00:05]} 40. Qe4+ {[%clk 0:00:08]}  Kg8 {[%clk 0:00:05]} 41. Qe8+ {[%clk 0:00:08]}  Kh7 {[%clk 0:00:05]} 42. Qe4+ {[%clk 0:00:05]}  Kg8 {[%clk 0:00:06]} 1/2-1/2


[Site "https://www.chess.com"]

[Event "Titled Tuesday Blitz August 22 Early 2023"]
[White "Sai Han Thiha"]
[Black "Shahaliyev, Ismayil"]
[WhiteFideId "13012290"]
[BlackFideId "13406388"]
[WhiteElo "2450"]
[BlackElo "2583"]
[Result "0-1"]
[Round "6"]
[TimeControl "180+1"]
[Date "2023.08.22"]
[WhiteClock "0:00:03"]
[BlackClock "0:00:16"]
[Board "112"]

1. Nf3 {[%clk 0:03:00]}  d5 {[%clk 0:02:59]} 2. g3 {[%clk 0:03:00]}  Nf6 {[%clk 0:02:59]} 3. Bg2 {[%clk 0:03:00]}  g6 {[%clk 0:02:57]} 4. b3 {[%clk 0:03:00]}  Bg7 {[%clk 0:02:58]} 5. Bb2 {[%clk 0:03:00]}  O-O {[%clk 0:02:59]} 6. c4 {[%clk 0:03:01]}  c5 {[%clk 0:02:47]} 7. cxd5 {[%clk 0:03:00]}  Qxd5 {[%clk 0:02:48]} 8. O-O {[%clk 0:02:45]}  Rd8 {[%clk 0:02:41]} 9. d3 {[%clk 0:02:37]}  Qh5 {[%clk 0:02:28]} 10. Qc2 {[%clk 0:02:23]}  Nc6 {[%clk 0:02:21]} 11. Nbd2 {[%clk 0:02:19]}  Nd4 {[%clk 0:01:58]} 12. Bxd4 {[%clk 0:02:05]}  cxd4 {[%clk 0:01:59]} 13. Rfc1 {[%clk 0:02:06]}  Bh6 {[%clk 0:01:49]} 14. Qc5 {[%clk 0:02:02]}  Bg4 {[%clk 0:01:37]} 15. Qxh5 {[%clk 0:01:58]}  Bxh5 {[%clk 0:01:38]} 16. Rc7 {[%clk 0:01:56]}  Rd7 {[%clk 0:01:25]} 17. Rxd7 {[%clk 0:01:42]}  Nxd7 {[%clk 0:01:26]} 18. Nc4 {[%clk 0:01:42]}  Rd8 {[%clk 0:00:57]} 19. Na5 {[%clk 0:01:30]}  Nc5 {[%clk 0:00:36]} 20. b4 {[%clk 0:01:28]}  Na4 {[%clk 0:00:18]} 21. Nxb7 {[%clk 0:01:28]}  Rd7 {[%clk 0:00:12]} 22. Ne5 {[%clk 0:01:23]}  Rc7 {[%clk 0:00:13]} 23. Nc4 {[%clk 0:01:15]}  Nc3 {[%clk 0:00:11]} 24. e3 {[%clk 0:01:05]}  dxe3 {[%clk 0:00:11]} 25. fxe3 {[%clk 0:01:05]}  Be2 {[%clk 0:00:12]} 26. Bf1 {[%clk 0:01:03]}  Bf3 {[%clk 0:00:11]} 27. Kf2 {[%clk 0:01:02]}  Bxb7 {[%clk 0:00:11]} 28. a3 {[%clk 0:00:59]}  Na4 {[%clk 0:00:11]} 29. e4 {[%clk 0:00:57]}  Bg7 {[%clk 0:00:12]} 30. Rc1 {[%clk 0:00:56]}  Bd4+ {[%clk 0:00:13]} 31. Kf3 {[%clk 0:00:57]}  Ba6 {[%clk 0:00:13]} 32. Rc2 {[%clk 0:00:55]}  Nb6 {[%clk 0:00:12]} 33. h4 {[%clk 0:00:50]}  Bb5 {[%clk 0:00:13]} 34. Rc1 {[%clk 0:00:50]}  Nd7 {[%clk 0:00:13]} 35. Rd1 {[%clk 0:00:48]}  h5 {[%clk 0:00:13]} 36. Kf4 {[%clk 0:00:45]}  Kg7 {[%clk 0:00:13]} 37. Rd2 {[%clk 0:00:43]}  Nf8 {[%clk 0:00:13]} 38. Ra2 {[%clk 0:00:41]}  Ne6+ {[%clk 0:00:14]} 39. Kf3 {[%clk 0:00:42]}  Ba4 {[%clk 0:00:14]} 40. Rd2 {[%clk 0:00:41]}  Bc3 {[%clk 0:00:15]} 41. Rg2 {[%clk 0:00:39]}  Nd4+ {[%clk 0:00:15]} 42. Ke3 {[%clk 0:00:40]}  Nb5 {[%clk 0:00:16]} 43. g4 {[%clk 0:00:39]}  Bd4+ {[%clk 0:00:17]} 44. Kf4 {[%clk 0:00:39]}  hxg4 {[%clk 0:00:17]} 45. Rxg4 {[%clk 0:00:39]}  Bb3 {[%clk 0:00:14]} 46. h5 {[%clk 0:00:39]}  Bxc4 {[%clk 0:00:14]} 47. dxc4 {[%clk 0:00:40]}  Nxa3 {[%clk 0:00:15]} 48. c5 {[%clk 0:00:39]}  e5+ {[%clk 0:00:14]} 49. Kf3 {[%clk 0:00:37]}  a5 {[%clk 0:00:15]} 50. bxa5 {[%clk 0:00:32]}  Rxc5 {[%clk 0:00:15]} 51. a6 {[%clk 0:00:33]}  Rc3+ {[%clk 0:00:14]} 52. Kg2 {[%clk 0:00:32]}  Rc2+ {[%clk 0:00:13]} 53. Kh3 {[%clk 0:00:31]}  Ra2 {[%clk 0:00:13]} 54. Bd3 {[%clk 0:00:30]}  Kf6 {[%clk 0:00:13]} 55. hxg6 {[%clk 0:00:29]}  fxg6 {[%clk 0:00:11]} 56. Rg3 {[%clk 0:00:29]}  Rd2 {[%clk 0:00:08]} 57. Kg4 {[%clk 0:00:27]}  Ke7 {[%clk 0:00:08]} 58. Kg5 {[%clk 0:00:26]}  Kd6 {[%clk 0:00:08]} 59. Kxg6 {[%clk 0:00:25]}  Kc7 {[%clk 0:00:09]} 60. Kf5 {[%clk 0:00:23]}  Kb6 {[%clk 0:00:09]} 61. Rg6+ {[%clk 0:00:23]}  Ka5 {[%clk 0:00:08]} 62. Rg3 {[%clk 0:00:22]}  Nb5 {[%clk 0:00:08]} 63. Bxb5 {[%clk 0:00:18]}  Kxb5 {[%clk 0:00:09]} 64. Ra3 {[%clk 0:00:18]}  Rf2+ {[%clk 0:00:09]} 65. Ke6 {[%clk 0:00:18]}  Rf8 {[%clk 0:00:10]} 66. a7 {[%clk 0:00:16]}  Ra8 {[%clk 0:00:10]} 67. Kd5 {[%clk 0:00:14]}  Kb6 {[%clk 0:00:11]} 68. Rb3+ {[%clk 0:00:14]}  Kc7 {[%clk 0:00:11]} 69. Ra3 {[%clk 0:00:14]}  Kb7 {[%clk 0:00:11]} 70. Rb3+ {[%clk 0:00:13]}  Kxa7 {[%clk 0:00:11]} 71. Kc6 {[%clk 0:00:14]}  Rc8+ {[%clk 0:00:11]} 72. Kd5 {[%clk 0:00:14]}  Rb8 {[%clk 0:00:11]} 73. Ra3+ {[%clk 0:00:12]}  Kb7 {[%clk 0:00:11]} 74. Rh3 {[%clk 0:00:13]}  Kb6 {[%clk 0:00:12]} 75. Rb3+ {[%clk 0:00:13]}  Kc7 {[%clk 0:00:12]} 76. Rh3 {[%clk 0:00:14]}  Rb5+ {[%clk 0:00:12]} 77. Ke6 {[%clk 0:00:13]}  Kc6 {[%clk 0:00:12]} 78. Rh8 {[%clk 0:00:12]}  Kc5 {[%clk 0:00:12]} 79. Rc8+ {[%clk 0:00:12]}  Kb4 {[%clk 0:00:13]} 80. Rc1 {[%clk 0:00:12]}  Rc5 {[%clk 0:00:13]} 81. Rb1+ {[%clk 0:00:12]}  Kc4 {[%clk 0:00:14]} 82. Rd1 {[%clk 0:00:12]}  Bc3 {[%clk 0:00:13]} 83. Kf5 {[%clk 0:00:10]}  Rb5 {[%clk 0:00:12]} 84. Ke6 {[%clk 0:00:10]}  Rb2 {[%clk 0:00:13]} 85. Rd8 {[%clk 0:00:09]}  Re2 {[%clk 0:00:13]} 86. Kf5 {[%clk 0:00:10]}  Rf2+ {[%clk 0:00:13]} 87. Ke6 {[%clk 0:00:10]}  Bd4 {[%clk 0:00:13]} 88. Rc8+ {[%clk 0:00:09]}  Kd3 {[%clk 0:00:13]} 89. Kd5 {[%clk 0:00:09]}  Rf7 {[%clk 0:00:13]} 90. Ra8 {[%clk 0:00:09]}  Rd7+ {[%clk 0:00:13]} 91. Ke6 {[%clk 0:00:09]}  Rb7 {[%clk 0:00:14]} 92. Kf5 {[%clk 0:00:09]}  Rb3 {[%clk 0:00:13]} 93. Rd8 {[%clk 0:00:08]}  Ke3 {[%clk 0:00:13]} 94. Rh8 {[%clk 0:00:08]}  Rb1 {[%clk 0:00:12]} 95. Rh3+ {[%clk 0:00:09]}  Kf2 {[%clk 0:00:12]} 96. Rd3 {[%clk 0:00:08]}  Re1 {[%clk 0:00:11]} 97. Rb3 {[%clk 0:00:07]}  Re3 {[%clk 0:00:11]} 98. Rb6 {[%clk 0:00:06]}  Kf3 {[%clk 0:00:12]} 99. Rh6 {[%clk 0:00:06]}  Rxe4 {[%clk 0:00:11]} 100. Rh3+ {[%clk 0:00:07]}  Kg2 {[%clk 0:00:11]} 101. Rh8 {[%clk 0:00:07]}  Rf4+ {[%clk 0:00:11]} 102. Kg5 {[%clk 0:00:06]}  Kf3 {[%clk 0:00:12]} 103. Rd8 {[%clk 0:00:06]}  Ke4 {[%clk 0:00:12]} 104. Ra8 {[%clk 0:00:04]}  Rf1 {[%clk 0:00:12]} 105. Ra4 {[%clk 0:00:04]}  Rg1+ {[%clk 0:00:13]} 106. Kf6 {[%clk 0:00:04]}  Kd3 {[%clk 0:00:13]} 107. Kf5 {[%clk 0:00:03]}  Rf1+ {[%clk 0:00:13]} 108. Kg4 {[%clk 0:00:03]}  e4 {[%clk 0:00:13]} 109. Ra3+ {[%clk 0:00:03]}  Bc3 {[%clk 0:00:14]} 110. Ra8 {[%clk 0:00:03]}  e3 {[%clk 0:00:14]} 111. Rd8+ {[%clk 0:00:04]}  Bd4 {[%clk 0:00:15]} 112. Ra8 {[%clk 0:00:04]}  e2 {[%clk 0:00:15]} 113. Ra3+ {[%clk 0:00:04]}  Bc3 {[%clk 0:00:16]} 114. Rxc3+ {[%clk 0:00:03]}  Kxc3 {[%clk 0:00:16]} 0-1


[Site "https://www.chess.com"]